bitfinex-derivatives/quotes_SOLF0:USTF0_20250320
["timestamp","ask_amount","ask_price","bid_price","bid_amount"]
[1742465293387,10.89517225,133.23,133.18,4.1072]
[1742465293593,10.89517225,133.21,133.18,27.12]
[1742465293792,10.89517225,133.21,133.17,41.71452538]
[1742465294188,0.05032836,133.2,133.18,0.05423931]
[1742465295399,0.05032836,133.2,133.18,7.56183931]
[1742465296202,0.05032836,133.2,133.18,0.05423931]
[1742465296604,10.94550061,133.2,133.18,0.05423931]
[1742465297303,0.05032836,133.2,133.18,0.05423931]
[1742465300605,0.05032836,133.2,133.18,7.56183931]
[1742465300902,0.05032836,133.2,133.18,0.05423931]
[1742465301707,0.05032836,133.2,133.19,7.5071]
[1742465310910,291.82983284,133.25,133.18,0.05423931]
[1742465311308,299.33383284,133.25,133.22,7.5051]
[1742465311815,299.33383284,133.25,133.17,44.24983284]
[1742465312115,299.38384122,133.25,133.22,7.55679756]
[1742465312413,299.38848886,133.25,133.22,7.55679756]
[1742465312711,291.88448886,133.25,133.23,7.5047]
[1742465312912,291.88448886,133.25,133.22,0.05159756]
[1742465313113,291.88448886,133.25,133.24,7.5043]
[1742465313319,0.05465602,133.25,133.24,7.5043]
[1742465323525,10.90070996,133.29,133.28,7.5021]
[1742465323724,37.96070996,133.3,133.28,7.5021]
[1742465324116,10.90070996,133.3,133.28,7.5021]
[1742465324518,10.90070996,133.3,133.27,7.5023]
[1742465324720,18.45548006,133.3,133.28,0.05369419]
[1742465325020,10.90070996,133.29,133.28,0.05369419]
[1742465325626,7.5025,133.28,133.25,7.5034]
[1742465325822,10.90070996,133.26,133.23,27.14]
[1742465326022,27.04,133.28,133.23,27.14]
[1742465326023,10.90070996,133.25,133.23,27.14]
[1742465326226,10.90070996,133.25,133.23,7.5045]
[1742465326425,10.90070996,133.25,133.21,27.04]
[1742465326619,10.90070996,133.26,133.21,37.94070996]
[1742465326820,10.90070996,133.26,133.24,7.504]
[1742465327024,0.05477069,133.25,133.24,7.504]
[1742465327623,10.95548065,133.25,133.23,7.5047]
[1742465327830,10.95548065,133.25,133.22,0.04845639]
[1742465328022,10.90070996,133.24,133.22,0.04845639]
[1742465328324,10.90070996,133.23,133.22,0.04845639]
[1742465329431,10.90070996,133.23,133.22,7.55385639]
[1742465331524,10.90070996,133.24,133.22,7.55385639]
[1742465332726,34.59887069,133.25,133.22,0.04845639]
[1742465332727,10.90070996,133.23,133.22,0.04845639]
[1742465333834,18.40560996,133.23,133.22,0.04845639]
[1742465334334,18.40560996,133.23,133.19,7.5068]
[1742465334335,7.5058,133.22,133.19,7.5068]
[1742465334526,10.90070996,133.21,133.18,34.5074]
[1742465334726,10.90070996,133.2,133.18,34.5074]
[1742465334930,10.90070996,133.21,133.18,27.0]
[1742465335432,10.94837246,133.21,133.18,27.05025107]
[1742465335834,10.94837246,133.21,133.19,7.5068]
[1742465336527,18.45447246,133.21,133.18,34.55765107]
[1742465336932,10.90070996,133.2,133.18,7.55765107]
[1742465338534,18.40730996,133.2,133.18,7.55765107]
[1742465339328,18.40730996,133.2,133.18,0.05025107]
[1742465339732,10.90070996,133.19,133.18,0.05025107]
[1742465341142,18.40780996,133.19,133.18,0.05025107]
[1742465341339,10.90070996,133.19,133.18,0.05025107]
[1742465342339,18.40780996,133.19,133.18,0.05025107]
[1742465342840,7.508,133.18,133.15,7.509]
[1742465343040,18.40870996,133.18,133.15,7.509]
[1742465343646,37.82070996,133.21,133.16,10.90070996]
[1742465343839,0.0528042,133.18,133.16,10.90070996]
[1742465344344,0.0528042,133.18,133.17,45.32890996]
[1742465349544,0.0528042,133.18,133.17,34.4282]
[1742465351144,0.0528042,133.18,133.17,34.3882]
[1742465351346,0.0528042,133.18,133.17,7.5082]
[1742465352044,10.95351416,133.18,133.15,0.02324985]
[1742465352547,10.95351416,133.18,133.16,7.5087]
[1742465353042,10.95351416,133.18,133.15,7.53234985]
[1742465353245,10.95351416,133.18,133.15,0.02324985]
[1742465353748,18.46151416,133.18,133.15,7.53214985]
[1742465354446,10.90070996,133.16,133.15,0.02324985]
[1742465355343,10.90070996,133.17,133.15,0.02324985]
[1742465355745,10.90070996,133.17,133.16,7.5088]
[1742465355944,10.90070996,133.17,133.15,0.02324985]
[1742465356243,0.0528042,133.18,133.15,37.78395981]
[1742465356543,0.0528042,133.18,133.16,10.90070996]
[1742465356849,0.0528042,133.18,133.17,7.5082]
[1742465365944,0.0528042,133.18,133.16,7.5086]
[1742465366650,10.90070996,133.17,133.15,0.02324985]
[1742465366854,10.90070996,133.16,133.15,0.02324985]
[1742465367045,10.95351416,133.18,133.15,0.02324985]
[1742465367251,0.0528042,133.18,133.16,10.90070996]
[1742465367649,0.0528042,133.18,133.17,7.5082]
[1742465367849,0.0528042,133.18,133.17,18.40890996]
[1742465368253,41.71452538,133.24,133.23,7.5049]
[1742465368444,41.71452538,133.24,133.2,10.90070996]
[1742465368650,49.21882538,133.24,133.19,38.42070996]
[1742465368955,52.61523534,133.24,133.22,7.5054]
[1742465369353,52.61523534,133.24,133.21,7.5058]
[1742465369555,52.67292037,133.24,133.22,0.05640017]
[1742465369954,52.67292037,133.24,133.23,7.5049]
[1742465370154,52.67292037,133.24,133.22,0.05640017]
[1742465370355,52.67292037,133.24,133.22,7.56160017]
[1742465370855,41.77221041,133.24,133.22,0.05640017]
[1742465371053,10.90070996,133.23,133.22,0.05640017]
[1742465372759,18.40560996,133.23,133.22,0.05640017]
[1742465372965,10.90070996,133.23,133.18,27.6]
[1742465373262,10.90070996,133.21,133.18,27.6]
[1742465373756,10.90070996,133.2,133.18,35.1074]
[1742465373954,10.90070996,133.2,133.09,129.73954481]
[1742465373955,10.90070996,133.2,133.15,10.90070996]
[1742465374155,10.90070996,133.18,133.14,10.90070996]
[1742465374451,10.90070996,133.19,133.15,27.64]
[1742465374653,0.05668439,133.17,133.15,27.64]
[1742465376156,0.05668439,133.17,133.15,35.1491]
[1742465376361,0.05668439,133.17,133.15,27.64]
[1742465376862,0.05668439,133.17,133.16,7.5088]
[1742465377859,0.05668439,133.17,133.15,27.64]
[1742465378465,0.05668439,133.17,133.16,7.5088]
[1742465378657,0.05668439,133.17,133.15,27.64]
[1742465378858,10.95739435,133.17,133.13,38.68070996]
[1742465379054,10.95739435,133.17,133.15,7.509]
[1742465379254,10.95739435,133.17,133.13,38.68070996]
[1742465379556,10.90070996,133.16,133.14,7.5096]
[1742465379758,10.90070996,133.15,133.09,10.90070996]
[1742465380058,10.90070996,133.14,133.13,7.5105]
[1742465380360,35.4485,133.17,133.06,6.0992]
[1742465380361,0.05297771,133.15,133.12,10.90070996]
[1742465380661,27.94,133.17,133.12,10.90070996]
[1742465380662,10.90070996,133.17,133.12,10.90070996]
[1742465380864,0.0561258,133.15,133.13,10.90070996]
[1742465381166,0.0561258,133.15,133.14,7.5099]
[1742465382162,0.0561258,133.15,133.13,7.5102]
[1742465382359,10.90070996,133.14,133.11,29.36]
[1742465382558,10.90070996,133.14,133.1,10.90070996]
[1742465383666,10.90070996,133.14,133.13,7.5105]
[1742465383857,10.90070996,133.14,133.1,10.90070996]
[1742465384165,10.90070996,133.14,133.1,29.72]
[1742465384763,10.90070996,133.14,133.11,7.5112]
[1742465384964,10.90070996,133.14,133.1,29.72]
[1742465385161,10.90070996,133.13,133.06,6.0992]
[1742465385367,10.90070996,133.11,133.06,46.97990996]
[1742465385568,10.95225788,133.11,133.07,10.90070996]
[1742465385760,0.05154792,133.11,133.1,7.5122]
[1742465387161,0.05154792,133.11,133.1,18.41290996]
[1742465387860,4.792e-05,133.11,133.1,18.41290996]
[1742465390763,6.353,133.19,133.1,18.42070996]
[1742465390764,15.11460996,133.19,133.1,18.42070996]
[1742465390964,247.78,133.2,133.15,10.90070996]
[1742465390965,258.68070996,133.2,133.15,10.90070996]
[1742465391164,258.68070996,133.2,133.19,7.5071]
[1742465391666,258.68070996,133.2,133.16,41.66070996]
[1742465391868,10.90070996,133.2,133.18,0.05040276]
[1742465392060,0.05638875,133.21,133.18,0.05040276]
[1742465392262,0.05638875,133.21,133.2,7.5066]
[1742465392457,10.95709871,133.21,133.18,0.05040276]
[1742465393365,10.95709871,133.21,133.19,7.5066]
[1742465394166,0.05638875,133.21,133.2,7.5066]
[1742465395061,0.05638875,133.21,133.2,18.40730996]
[1742465396172,0.05638875,133.21,133.2,10.90070996]
[1742465396467,0.05638875,133.21,133.19,49.30760996]
[1742465397072,0.05638875,133.21,133.2,7.5066]
[1742465397369,0.05638875,133.21,133.19,41.80070996]
[1742465397572,0.05638875,133.21,133.19,49.30760996]
[1742465397766,0.05638875,133.21,133.19,41.80070996]
[1742465397966,0.05638875,133.21,133.2,7.5066]
[1742465398868,0.05638875,133.21,133.19,49.30760996]
[1742465399470,0.05638875,133.21,133.19,41.80070996]
[1742465399667,0.05638875,133.21,133.19,30.9]
[1742465399872,0.05638875,133.21,133.19,41.80070996]
[1742465400371,0.05638875,133.21,133.2,7.5066]
[1742465400571,0.05638875,133.21,133.19,41.80070996]
[1742465401772,0.05638875,133.21,133.2,7.5066]
[1742465402371,0.05638875,133.21,133.19,30.9]
[1742465402574,10.95709871,133.21,133.19,30.9]
[1742465402969,7.56268875,133.21,133.19,30.9]
[1742465403171,10.95709871,133.21,133.18,0.05040276]
[1742465403371,10.90070996,133.2,133.18,30.69040276]
[1742465403566,18.40750996,133.2,133.18,30.69040276]
[1742465403875,10.90070996,133.2,133.18,30.69040276]
[1742465404072,18.40780996,133.19,133.18,0.05040276]
[1742465407973,10.90070996,133.19,133.18,0.05040276]
[1742465408374,10.95709871,133.21,133.18,0.05040276]
[1742465408571,18.46339871,133.21,133.18,0.05040276]
[1742465409478,10.90070996,133.2,133.18,0.05040276]
[1742465409879,10.90070996,133.2,133.18,7.55760276]
[1742465410378,10.90070996,133.2,133.18,0.05040276]
[1742465411573,10.90070996,133.2,133.18,7.55770276]
[1742465412380,10.90070996,133.2,133.19,7.5071]
[1742465412985,10.90070996,133.2,133.18,0.05040276]
[1742465413689,10.95709871,133.21,133.18,0.05040276]
[1742465413982,18.46339871,133.21,133.18,0.05040276]
[1742465414183,18.46339871,133.21,133.18,7.55770276]
[1742465414684,10.90070996,133.2,133.18,0.05040276]
[1742465415183,10.90070996,133.2,133.19,7.5069]
[1742465415785,10.90070996,133.2,133.18,7.55780276]
[1742465415988,10.90070996,133.2,133.18,0.05040276]
[1742465417091,18.40760996,133.2,133.18,0.05040276]
[1742465417485,10.90070996,133.2,133.18,0.05040276]
[1742465417790,10.90070996,133.19,133.11,10.90070996]
[1742465418088,10.90070996,133.15,133.13,7.5102]
[1742465418283,10.90070996,133.15,133.12,30.54]
[1742465418678,10.90070996,133.15,133.13,7.5102]
[1742465418877,10.9519857,133.15,133.12,0.02079904]
[1742465419086,10.90070996,133.14,133.12,0.02079904]
[1742465419278,18.41120996,133.13,133.12,0.02079904]
[1742465419480,10.90070996,133.14,133.12,0.02079904]
[1742465420289,18.41070996,133.14,133.12,0.02079904]
[1742465420486,10.90070996,133.14,133.12,0.02079904]
[1742465420686,10.90070996,133.13,133.12,0.02079904]
[1742465421985,18.41120996,133.13,133.12,0.02079904]
[1742465422193,10.90070996,133.13,133.12,0.02079904]
[1742465422887,18.41120996,133.13,133.12,0.02079904]
[1742465427197,10.90070996,133.13,133.06,30.68]
[1742465427397,10.90070996,133.1,133.06,30.68]
[1742465427596,10.90070996,133.1,133.07,7.5135]
[1742465428300,10.95329112,133.1,133.07,7.5135]
[1742465428690,0.05258116,133.1,133.06,41.58070996]
[1742465429198,0.05258116,133.1,133.08,7.5133]
[1742465429396,0.05258116,133.1,133.06,41.58070996]
[1742465429697,10.95329112,133.1,133.06,30.68]
[1742465430300,10.95329112,133.1,133.08,7.5133]
[1742465430599,0.05258116,133.1,133.06,41.58070996]
[1742465430797,0.05258116,133.1,133.09,7.5128]
[1742465434995,0.05258116,133.1,133.08,30.68]
[1742465436099,0.05258116,133.1,133.09,7.5128]
[1742465437401,10.95329112,133.1,133.0,15.0357]
[1742465437696,10.90070996,133.08,133.04,10.90070996]
[1742465437902,0.05444971,133.06,133.04,41.44070996]
[1742465439400,10.95515967,133.06,133.01,10.90070996]
[1742465439601,18.41510996,133.07,133.02,10.90070996]
[1742465439805,0.05548264,133.05,133.02,10.90070996]
[1742465440000,0.05548264,133.05,133.01,41.52070996]
[1742465440197,10.9561926,133.05,133.0,10.90070996]
[1742465440406,10.9561926,133.05,133.01,30.62]
[1742465440601,10.9561926,133.05,132.99,1.9719]
[1742465440806,10.90070996,133.04,133.01,7.5169]
[1742465441006,10.90070996,133.04,133.0,41.54070996]
[1742465441207,10.9561926,133.05,133.0,41.54070996]
[1742465441507,0.05548264,133.05,133.03,10.90070996]
[1742465442005,0.05548264,133.05,133.03,41.58070996]
[1742465442606,0.05548264,133.05,133.04,7.5156]
[1742465445706,0.05548264,133.05,133.03,38.1957]
[1742465446107,0.05548264,133.05,133.03,30.68]
[1742465446407,0.05548264,133.05,133.03,38.1959]
[1742465446706,10.90070996,133.04,133.0,10.90070996]
[1742465446907,10.90070996,133.04,133.01,30.6]
[1742465447306,10.90070996,133.04,133.02,7.5165]
[1742465447907,10.90070996,133.04,133.01,30.6]
[1742465448110,10.9561926,133.05,133.01,30.6]
[1742465448306,10.9561926,133.05,133.03,7.5161]
[1742465448610,18.4711926,133.05,133.01,30.6]
[1742465448810,10.90070996,133.02,132.94,359.0]
[1742465449006,10.90070996,133.01,132.95,34.6622]
[1742465449206,0.04898472,132.99,132.97,10.90070996]
[1742465449604,0.04898472,132.99,132.95,34.6622]
[1742465449909,0.04898472,132.99,132.96,10.90070996]
[1742465450110,0.04898472,132.99,132.98,7.519]
[1742465450409,0.04898472,132.99,132.98,38.119]
[1742465450608,0.04898472,132.99,132.98,7.519]
[1742465452605,10.94969468,132.99,132.87,1.30866426]
[1742465452809,10.90070996,132.96,132.91,10.90070996]
[1742465453006,10.95500245,132.95,132.9,10.90070996]
[1742465453208,10.90070996,132.94,132.91,7.5226]
[1742465453409,10.9550011,132.94,132.9,30.66]
[1742465453712,10.9550011,132.94,132.92,7.5218]
[1742465453916,10.90070996,132.93,132.87,2.1411]
[1742465454205,2.1059,133.0,132.85,41.71452538]
[1742465454408,10.90070996,132.9,132.85,52.61523534]
[1742465454612,10.90070996,132.92,132.85,74.13452538]
[1742465454813,0.05070154,132.89,132.85,74.13452538]
[1742465455006,0.05070154,132.89,132.88,10.90070996]
[1742465455213,0.05070154,132.89,132.88,41.3244]
[1742465455608,0.05070154,132.89,132.88,7.5244]
[1742465456216,0.05070154,132.89,132.86,34.6]
[1742465456413,0.05070154,132.89,132.84,19.25866799]
[1742465456610,0.05070154,132.89,132.84,2.1411]
[1742465457014,0.05070154,132.89,132.85,62.0]
[1742465457316,0.05070154,132.89,132.88,7.5246]
[1742465457708,0.05070154,132.89,132.85,98.84]
[1742465457913,0.05070154,132.89,132.83,36.9]
[1742465457914,17.16826953,132.89,132.83,36.9]
[1742465458413,24.69246953,132.89,132.85,7.5263]
[1742465458620,0.05070154,132.89,132.83,36.9]
[1742465459022,0.05070154,132.89,132.84,17.11756799]
[1742465459514,0.05070154,132.89,132.87,7.5248]
[1742465459720,0.05070154,132.89,132.87,37.02]
[1742465459917,0.05070154,132.89,132.88,7.5246]
[1742465460123,0.05070154,132.89,132.87,37.02]
[1742465461128,0.05070154,132.89,132.88,7.5246]
[1742465461419,0.05070154,132.89,132.82,36.96]
[1742465461820,0.0522972,132.87,132.81,21.26116799]
[1742465462222,0.0522972,132.87,132.86,7.5253]
[1742465464318,0.0522972,132.87,132.85,36.92]
[1742465464524,0.0522972,132.87,132.83,36.92]
[1742465464920,0.0522972,132.87,132.77,17.11756799]
[1742465464921,17.11756799,132.85,132.77,17.11756799]
[1742465465220,17.11756799,132.85,132.78,36.94]
[1742465465423,0.05753577,132.82,132.68,360.31026563]
[1742465465616,17.11756799,132.75,132.69,1.38346019]
[1742465465820,24.64966799,132.75,132.68,3.9992]
[1742465466025,17.11756799,132.75,132.68,3.9992]
[1742465466227,17.11756799,132.73,132.67,43.72612538]
[1742465466426,0.05538222,132.73,132.72,7.5337]
[1742465467121,0.05538222,132.73,132.69,7.5354]
[1742465467328,0.05538222,132.73,132.66,41.71452538]
[1742465468235,0.05538222,132.73,132.72,7.5337]
[1742465470331,2.0381,132.82,132.72,34.99965037]
[1742465470632,31.45415037,132.85,132.73,2.1186]
[1742465470827,68.53415037,132.85,132.74,37.08]
[1742465471233,27.45965037,132.83,132.74,37.08]
[1742465471434,0.05386969,132.81,132.78,0.05469968]
[1742465472428,27.51352006,132.81,132.78,0.05469968]
[1742465472629,27.51352006,132.81,132.72,37.0]
[1742465472630,27.45965037,132.79,132.72,37.0]
[1742465472834,27.45965037,132.79,132.74,7.5322]
[1742465473034,27.45965037,132.79,132.72,37.0]
[1742465473435,27.45965037,132.81,132.72,37.0]
[1742465473630,275.89965037,132.82,132.72,64.45965037]
[1742465473831,0.05386917,132.78,132.77,7.5309]
[1742465474136,248.44,132.82,132.77,37.06]
[1742465474336,0.0529599,132.79,132.78,7.5303]
[1742465474727,0.0529599,132.79,132.77,37.06]
[1742465475140,0.0529599,132.79,132.78,7.5303]
[1742465476540,0.0529599,132.79,132.77,7.5307]
[1742465476742,0.0529599,132.79,132.73,36.94]
[1742465476935,27.45965037,132.81,132.73,36.94]
[1742465477137,36.96,132.82,132.79,7.5292]
[1742465477443,36.96,132.82,132.73,36.94]
[1742465477835,6.731e-05,132.79,132.74,31.55385037]
[1742465478141,6.731e-05,132.79,132.78,7.5303]
[1742465478334,6.731e-05,132.79,132.78,44.3903]
[1742465480441,6.731e-05,132.79,132.77,7.58248254]
[1742465480642,6.731e-05,132.79,132.77,0.05178254]
[1742465481041,6.731e-05,132.79,132.78,7.5303]
[1742465481747,6.731e-05,132.79,132.77,7.58248254]
[1742465482246,6.731e-05,132.79,132.77,0.05178254]
[1742465482648,6.731e-05,132.79,132.78,7.5303]
[1742465484245,6.731e-05,132.79,132.77,0.05178254]
[1742465484451,7.53016731,132.79,132.77,0.05178254]
[1742465484748,6.731e-05,132.79,132.78,7.5303]
[1742465485444,6.731e-05,132.79,132.77,7.58258254]
[1742465485838,6.731e-05,132.79,132.77,0.05178254]
[1742465486043,6.731e-05,132.79,132.78,7.5303]
[1742465486446,6.731e-05,132.79,132.77,0.05178254]
[1742465487045,6.731e-05,132.79,132.78,7.5303]
[1742465488244,6.731e-05,132.79,132.77,7.58238254]
[1742465488744,6.731e-05,132.79,132.77,0.05178254]
[1742465489352,24.68284634,132.78,132.77,0.05178254]
[1742465489547,24.68284634,132.78,132.74,43.9726]
[1742465489548,17.15254634,132.78,132.71,3.9893]
[1742465489746,17.15254634,132.78,132.68,248.52]
[1742465489747,17.15254634,132.76,132.7,38.5288]
[1742465490051,17.15254634,132.77,132.7,38.5288]
[1742465490243,17.15254634,132.77,132.7,36.5]
[1742465490446,17.15254634,132.75,132.7,7.5346]
[1742465490646,17.20502874,132.75,132.69,36.5]
[1742465490844,17.20502874,132.75,132.72,7.5334]
[1742465491547,24.73752874,132.75,132.71,7.5341]
[1742465491862,22.54,132.72,132.61,35.26352538]
[1742465492154,17.15254634,132.66,132.61,27.07692538]
[1742465492350,36.38,132.65,132.61,27.07692538]
[1742465492653,265.69254634,132.71,132.62,53.53254634]
[1742465492847,265.69254634,132.71,132.62,36.38]
[1742465493049,17.15254634,132.69,132.62,36.38]
[1742465493242,27.49850217,132.69,132.61,27.07692538]
[1742465493753,0.05673882,132.66,132.64,0.05050975]
[1742465494751,27.55524099,132.66,132.64,0.05050975]
[1742465495056,0.05673882,132.66,132.64,0.05050975]
[1742465500251,35.03620217,132.65,132.59,4.0065]
[1742465500452,27.49850217,132.65,132.59,4.0065]
[1742465500652,27.49850217,132.65,132.61,7.5396]
[1742465500861,27.49850217,132.65,132.59,4.0065]
[1742465501454,0.05363541,132.63,132.59,4.0065]
[1742465501655,0.05363541,132.63,132.59,11.547]
[1742465501951,0.05363541,132.63,132.59,4.0065]
[1742465502256,0.05363541,132.63,132.6,7.5402]
[1742465502757,0.05363541,132.63,132.61,7.5398]
[1742465503059,0.05363541,132.63,132.59,4.0065]
[1742465503451,0.05363541,132.63,132.61,7.5396]
[1742465503658,27.49850217,132.65,132.59,4.0065]
[1742465503858,27.49850217,132.65,132.62,7.539]
[1742465504058,27.49850217,132.65,132.61,35.62]
[1742465505057,27.49850217,132.63,132.53,35.56]
[1742465505261,27.49850217,132.63,132.54,4.2339]
[1742465505451,27.49850217,132.6,132.55,35.52]
[1742465506061,35.03910217,132.6,132.56,7.5422]
[1742465506260,0.05090709,132.59,132.56,7.5422]
[1742465506457,27.49850217,132.62,132.55,35.52]
[1742465506659,35.56,132.64,132.55,35.52]
[1742465507059,7.5387,132.64,132.55,35.52]
[1742465507260,311.71850217,132.65,132.55,35.52]
[1742465507765,319.25640217,132.65,132.61,7.5394]
[1742465508161,0.05043064,132.64,132.62,0.05310325]
[1742465508561,0.05043064,132.64,132.62,7.59210325]
[1742465509160,0.05043064,132.64,132.62,0.05310325]
[1742465509667,0.05043064,132.64,132.63,7.5388]
[1742465511068,27.49850217,132.69,132.65,7.5373]
[1742465511271,7.536,132.68,132.62,35.39310325]
[1742465511463,62.81850217,132.69,132.62,35.34]
[1742465511666,62.81850217,132.69,132.63,2.0543]
[1742465511867,27.49850217,132.67,132.63,2.0543]
[1742465512063,27.5486859,132.67,132.65,0.05069863]
[1742465512466,27.5486859,132.67,132.61,2.0784]
[1742465512670,27.5486859,132.67,132.62,7.5394]
[1742465512974,7.5375,132.66,132.61,2.0784]
[1742465513170,27.5486859,132.67,132.61,2.0784]
[1742465513372,35.0857859,132.67,132.61,2.0784]
[1742465513564,27.5486859,132.67,132.63,0.05349165]
[1742465513967,0.05018373,132.67,132.63,0.05349165]
[1742465514768,0.05018373,132.67,132.63,35.21349165]
[1742465514969,0.05018373,132.67,132.64,2.0625]
[1742465515165,0.05018373,132.67,132.65,7.5374]
[1742465516079,0.05018373,132.67,132.66,7.5371]
[1742465517583,248.8,132.7,132.68,7.5357]
[1742465517979,248.8,132.7,132.66,34.98]
[1742465518184,248.8,132.7,132.68,7.5356]
[1742465518578,248.8,132.7,132.67,9.6166]
[1742465518883,248.85519459,132.7,132.68,0.05004451]
[1742465519087,7.5354,132.69,132.68,0.05004451]
[1742465519785,256.39009459,132.7,132.68,0.05004451]
[1742465519981,248.85519459,132.7,132.68,0.05004451]
[1742465520789,256.39059459,132.7,132.68,0.05004451]
[1742465521086,248.85519459,132.7,132.68,0.05004451]
[1742465521989,248.8,132.75,132.68,0.05004451]
[1742465522287,248.8,132.75,132.67,4.059]
[1742465522880,248.8,132.75,132.68,7.5358]
[1742465523089,0.05033542,132.72,132.7,0.05032458]
[1742465523387,7.5343,132.71,132.7,0.05032458]
[1742465523780,54.99700434,132.68,132.53,114.65566015]
[1742465523981,27.49850217,132.59,132.53,118.74746015]
[1742465524184,62.11850217,132.59,132.53,118.74746015]
[1742465524482,27.49850217,132.59,132.53,118.74746015]
[1742465524688,35.03970217,132.59,132.54,7.5435]
[1742465524880,0.05531837,132.57,132.55,0.05790292]
[1742465525184,0.05531837,132.57,132.53,114.65566015]
[1742465525185,62.03850217,132.56,132.53,114.65566015]
[1742465525395,0.05531837,132.57,132.53,114.65566015]
[1742465525683,248.76,132.61,132.53,114.65566015]
[1742465526286,248.76,132.61,132.57,7.5417]
[1742465526487,248.76,132.61,132.57,34.54]
[1742465526894,0.04933307,132.6,132.58,0.0508467]
[1742465527089,0.04933307,132.6,132.58,2.1018467]
[1742465531695,0.04933307,132.6,132.58,9.6431467]
[1742465532894,0.04933307,132.6,132.59,7.5411]
[1742465533888,22.54,132.58,132.41,207.9519084]
[1742465534087,27.49850217,132.45,132.39,40.9451171]
[1742465534286,27.49850217,132.51,132.41,44.9717]
[1742465534287,276.35850217,132.51,132.41,44.9717]
[1742465534494,27.49850217,132.51,132.41,2.0005]
[1742465534796,27.49850217,132.48,132.42,35.44]
[1742465534993,27.49850217,132.45,132.41,2.0005]
[1742465535190,27.49850217,132.42,132.4,136.21222881]
[1742465535401,13.67663571,132.41,132.4,136.21222881]
[1742465535600,13.67663571,132.41,132.4,136.26383545]
[1742465536101,10.44323571,132.41,132.4,136.26383545]
[1742465536995,5.25910363,132.41,132.4,136.26383545]
[1742465537195,5.25910363,132.41,132.4,0.05160664]
[1742465538894,25.89950777,132.44,132.4,0.05160664]
[1742465539105,12.96750777,132.44,132.4,29.57370881]
[1742465539297,35.24932538,132.44,132.43,7.5502]
[1742465539489,83.42905077,132.46,132.43,63.23850217]
[1742465539690,83.42905077,132.46,132.44,35.72]
[1742465540201,83.47829271,132.46,132.44,0.05112953]
[1742465540594,5.28781163,132.45,132.44,0.05112953]
[1742465541199,5.28760529,132.45,132.44,0.05112953]
[1742465541602,5.28760529,132.45,132.39,35.9]
[1742465541798,5.28760529,132.44,132.39,35.9]
[1742465542000,5.28760529,132.43,132.39,35.9]
[1742465542203,3.9639,132.47,132.39,35.9]
[1742465542505,5.28248237,132.46,132.39,35.9]
[1742465542706,0.05196217,132.44,132.42,0.0495469]
[1742465543208,0.05196217,132.44,132.42,35.8695469]
[1742465544206,0.05196217,132.44,132.43,35.04870217]
[1742465545802,2.0141,132.5,132.46,7.5482]
[1742465546001,5.27385783,132.49,132.46,7.5482]
[1742465546203,5.27385783,132.48,132.45,63.13850217]
[1742465546406,2.0141,132.5,132.45,63.13850217]
[1742465546606,5.27322177,132.49,132.46,7.5484]
[1742465546903,0.05704461,132.49,132.46,0.05743967]
[1742465547904,0.05704461,132.49,132.47,7.5475]
[1742465548104,0.05704461,132.49,132.48,35.56]
[1742465548307,40.86799504,132.49,132.4,608.12]
[1742465548506,12.81835043,132.48,132.43,7.5498]
[1742465548706,5.27095043,132.47,132.4,608.12]
[1742465549104,7.5474,132.48,132.41,35.52]
[1742465549302,7.5481,132.47,132.41,35.52]
[1742465549502,0.05284643,132.46,132.44,7.5496]
[1742465549906,0.05284643,132.46,132.43,0.05281784]
[1742465550111,0.05284643,132.46,132.45,7.5491]
[1742465551205,0.05284643,132.46,132.44,7.5495]
[1742465551804,0.05284643,132.46,132.43,0.05281784]
[1742465552011,5.26467178,132.45,132.37,63.53850217]
[1742465552201,5.26467178,132.45,132.38,36.04]
[1742465552404,1.9995,132.52,132.43,27.49850217]
[1742465552605,5.26448911,132.51,132.44,36.04]
[1742465552800,5.2646782,132.5,132.44,36.04]
[1742465553109,0.05254976,132.49,132.46,7.5481]
[1742465553509,0.05254976,132.49,132.44,36.04]
[1742465554114,0.05254976,132.49,132.46,7.5481]
[1742465554303,0.05254976,132.49,132.44,36.04]
[1742465555102,0.05254976,132.49,132.48,7.5474]
[1742465555303,0.05254976,132.49,132.48,43.3874]
[1742465555504,0.05254976,132.49,132.48,35.84]
[1742465557116,0.05254976,132.49,132.47,35.72]
[1742465557510,0.05254976,132.49,132.41,27.49850217]
[1742465557711,4.2324,132.53,132.42,35.66]
[1742465557906,2.622e-05,132.46,132.42,35.66]